lending/lending_fUSD_20241229
["ID","MTS","AMOUNT","RATE_DAILY","PERIOD"]
[347073987,1735489896437,-3600.62,0.00013731,2]
[347073988,1735489896447,-750.79,0.00013731,2]
[347073989,1735489896457,-776.0,0.00013731,2]
[347073990,1735489896466,-2295.24,0.00013731,2]
[347073991,1735489896475,-743.69,0.00013731,2]
[347073992,1735489896486,-637.29,0.00013731,2]
[347073993,1735489896495,-528.46,0.00013731,2]
[347073994,1735489896505,-16509.04,0.00013731,2]
[347073995,1735489896514,-1355.28,0.00013731,2]
[347073996,1735489896524,-2104.69,0.00013731,2]
[347073997,1735489896534,-893.81,0.00013731,2]
[347073998,1735489896544,-773.78,0.00013731,2]
[347073999,1735489896553,-890.01,0.00013731,2]
[347074000,1735489896563,-1251.31,0.00013731,2]
[347074001,1735489896572,-500.0,0.00013731,2]
[347074002,1735489896581,-909.43,0.00013731,2]
[347074003,1735489896591,-500.0,0.00013731,2]
[347074004,1735489896600,-1051.79,0.00013731,2]
[347074005,1735489896610,-1988.73,0.00013731,2]
[347074006,1735489896619,-1184.67,0.00013731,2]
[347074007,1735489896629,-2308.07,0.00013731,2]
[347074008,1735489896639,-500.0,0.00013731,2]
[347074009,1735489896648,-705.54,0.00013731,2]
[347074010,1735489896658,-500.0,0.00013731,2]
[347074011,1735489896667,-1060.41,0.00013731,2]
[347074012,1735489896677,-2299.51,0.00013731,2]
[347074013,1735489896687,-851.46,0.00013731,2]
[347074014,1735489896696,-500.0,0.00013731,2]
[347074015,1735489896705,-1853.38,0.00013731,2]
[347074016,1735489896715,-964.97,0.00013731,2]
[347074017,1735489896724,-1075.86,0.00013731,2]
[347074018,1735489896735,-500.0,0.00013731,2]
[347074019,1735489896745,-2115.26,0.00013731,2]
[347074020,1735489896756,-1352.22,0.00013731,2]
[347074021,1735489896769,-500.0,0.00013731,2]
[347074022,1735489896779,-639.4,0.00013731,2]
[347074023,1735489896788,-849.33,0.00013731,2]
[347074024,1735489896799,-666.0,0.00013731,2]
[347074025,1735489896808,-666.0,0.00013731,2]
[347074026,1735489896818,-666.0,0.00013731,2]
[347074027,1735489896827,-3181.36,0.00013732,2]
[347074028,1735489896837,-6329.31,0.00013732,2]
[347074029,1735489896846,-3277.49,0.00013732,2]
[347074030,1735489896856,-12312.34,0.00013732,2]
[347074031,1735489896866,-3574.32,0.00013732,2]
[347074032,1735489896875,-3943.77,0.00013732,2]
[347074033,1735489896884,-3305.08,0.00013732,2]
[347074034,1735489896894,-739.21,0.00013732,2]
[347074035,1735489896904,-7280.0,0.00013732,2]
[347074036,1735489896914,-751.24,0.00013732,2]
[347074037,1735489896924,-719.93,0.00013732,2]
[347074038,1735489896934,-1192.86,0.00013732,2]
[347074039,1735489896943,-1143.16,0.00013732,2]
[347074040,1735489896953,-2691.11,0.00013732,2]
[347074041,1735489896962,-2885.5,0.00013732,2]
[347074042,1735489896972,-2387.4,0.00013732,2]
[347074043,1735489896981,-4451.17,0.00013732,2]
[347074044,1735489896991,-2274.63,0.00013732,2]
[347074045,1735489897001,-3460.09,0.00013732,2]
[347074046,1735489897010,-922.86,0.00013732,2]
[347074047,1735489897020,-1156.67,0.00013732,2]
[347074048,1735489897030,-2396.52,0.00013732,2]
[347074049,1735489897039,-3499.32,0.00013732,2]
[347074050,1735489897049,-2481.53,0.00013732,2]
[347074051,1735489897059,-2018.38,0.00013732,2]
[347074052,1735489897069,-683.43,0.00013732,2]
[347074053,1735489897079,-5328.55,0.00013732,2]
[347074054,1735489897088,-2716.03,0.00013732,2]
[347074055,1735489897098,-3917.79,0.00013732,2]
[347074056,1735489897108,-1605.45,0.00013732,2]
[347074057,1735489897117,-45088.26,0.00013732,2]
[347074058,1735489897127,-6385.49,0.00013732,2]
[347074059,1735489897136,-28481.33,0.00013732,2]
[347074060,1735489897146,-1291.66,0.00013733,2]
[347074061,1735489897156,-1926.58,0.00013733,2]
[347074062,1735489897165,-4336.05,0.00013733,2]
[347074063,1735489897175,-5033.79,0.00013733,2]
[347074064,1735489897185,-150.0,0.00013757,2]
[347074065,1735489897194,-564.3,0.00013768,2]
[347074066,1735489897204,-2067.06001,0.0001379,2]
[347074067,1735489897213,-287.0,0.00013799,2]
[347074068,1735489897223,-500.0,0.00013822,2]
[347074069,1735489897232,-150.0,0.00013822,2]
[347074070,1735489897242,-500.0,0.00013822,2]
[347074071,1735489897251,-3793.0,0.00013822,2]
[347074072,1735489897261,-2241.0,0.00013822,2]
[347074073,1735489897270,-152.0,0.00013825,5]
[347074074,1735489897279,-510.97,0.00013904,2]
[347074075,1735489897288,-1306.56,0.00013904,2]
[347074076,1735489897297,-500.0,0.00013904,2]
[347074077,1735489897308,-968.82,0.00013904,2]
[347074078,1735489897318,-1952.26,0.00013904,2]
[347074079,1735489897327,-1407.8,0.00013904,2]
[347074080,1735489897336,-1583.19,0.00013904,2]
[347074081,1735489897346,-1048.33,0.00013904,2]
[347074082,1735489897355,-900.45,0.00013904,2]
[347074083,1735489897365,-669.37,0.00013904,2]
[347074084,1735489897375,-1013.65,0.00013904,2]
[347074085,1735489897385,-1333.84,0.00013904,2]
[347074086,1735489897395,-701.57,0.00013904,2]
[347074087,1735489897405,-616.81,0.00013904,2]
[347074088,1735489897415,-1458.91,0.00013904,2]
[347074089,1735489897424,-1791.59,0.00013904,2]
[347074090,1735489897433,-500.0,0.00013904,2]
[347074091,1735489897443,-500.0,0.00013904,2]
[347074092,1735489897453,-500.0,0.00013904,2]
[347074093,1735489897463,-500.0,0.00013904,2]
[347074094,1735489897473,-500.0,0.00013904,2]
[347074095,1735489897483,-500.0,0.00013904,2]
[347074096,1735489897492,-887.59,0.00013904,2]
[347074097,1735489897502,-2024.5,0.00013904,2]
[347074098,1735489897511,-1199.76,0.00013904,2]
[347074099,1735489897522,-1139.1,0.00013904,2]
[347074100,1735489897531,-500.0,0.00013904,2]
[347074101,1735489897541,-1849.25,0.00013904,2]
[347074102,1735489897551,-834.81,0.00013904,2]
[347074103,1735489897563,-1070.95,0.00013904,2]
[347074104,1735489897573,-500.0,0.00013904,2]
[347074105,1735489897583,-936.54,0.00013904,2]
[347074106,1735489897593,-2044.8,0.00013904,2]
[347074107,1735489897602,-1357.53,0.00013904,2]
[347074108,1735489897612,-852.21,0.00013904,2]
[347074109,1735489897622,-664.74,0.00013904,2]
[347074110,1735489897631,-2081.2,0.00013904,2]
[347074111,1735489897640,-500.0,0.00013904,2]
[347074112,1735489897650,-1193.34,0.00013904,2]
[347074113,1735489897659,-1949.38,0.00013904,2]
[347074114,1735489897668,-1499.21,0.00013904,2]
[347074115,1735489897678,-957.19,0.00013904,2]
[347074116,1735489897687,-1086.74,0.00013904,2]
[347074117,1735489897697,-1671.48,0.00013904,2]
[347074118,1735489897706,-1109.88,0.00013904,2]
[347074119,1735489897716,-1401.41,0.00013904,2]
[347074120,1735489897725,-2210.72,0.00013904,2]
[347074121,1735489897735,-2145.94,0.00013904,2]
[347074122,1735489897744,-2179.71,0.00013904,2]
[347074123,1735489897755,-1629.52,0.00013905,2]
[347074124,1735489897767,-1138.87,0.00013905,2]
[347074125,1735489897776,-526.0,0.00013905,2]
[347074126,1735489897785,-872.22,0.00013905,2]
[347074127,1735489897795,-1239.13,0.00013905,2]
[347074128,1735489897806,-947.43,0.00013905,2]
[347074129,1735489897815,-1354.94,0.00013905,2]
[347074130,1735489897825,-1847.85,0.00013905,2]
[347074131,1735489897835,-2077.72,0.00013905,2]
[347074132,1735489897846,-885.81,0.00013905,2]
[347074133,1735489897855,-1258.17,0.00013905,2]
[347074134,1735489897866,-1096.6,0.00013905,2]
[347074135,1735489897875,-1647.5,0.00013905,2]
[347074136,1735489897884,-936.49,0.00013905,2]
[347074137,1735489897894,-1965.02,0.00013905,2]
[347074138,1735489897903,-1270.11,0.00013905,2]
[347074139,1735489897912,-735.69,0.00013905,2]
[347074140,1735489898068,-1915.81,0.00013905,2]
[347074141,1735489898079,-1704.31,0.00013905,2]
[347074142,1735489898088,-601.41,0.00013905,2]
[347074143,1735489898098,-842.62,0.00013905,2]
[347074144,1735489898107,-917.37,0.00013905,2]
[347074145,1735489898117,-1178.93,0.00013905,2]
[347074146,1735489898127,-1187.17,0.00013905,2]
[347074147,1735489898136,-500.0,0.00013905,2]
[347074148,1735489898146,-857.11,0.00013905,2]
[347074149,1735489898155,-564.3,0.00013905,2]
[347074150,1735489898164,-637.8,0.00013905,2]
[347074151,1735489898174,-1174.42,0.00013905,2]
[347074152,1735489898184,-1426.37,0.00013905,2]
[347074153,1735489898193,-591.13,0.00013905,2]
[347074154,1735489898203,-901.33,0.00013905,2]
[347074155,1735489898212,-500.0,0.00013905,2]
[347074156,1735489898222,-500.0,0.00013905,2]
[347074157,1735489898231,-2098.83,0.00013905,2]
[347074158,1735489898241,-896.49,0.00013905,2]
[347074159,1735489898250,-1070.04,0.00013905,2]
[347074160,1735489898259,-794.28,0.00013905,2]
[347074161,1735489898269,-506.73,0.00013905,2]
[347074162,1735489898278,-987.86,0.00013905,2]
[347074163,1735489898288,-1547.13,0.00013905,2]
[347074164,1735489898297,-676.15,0.00013905,2]
[347074165,1735489898307,-1819.79,0.00013905,2]
[347074166,1735489898316,-1109.01,0.00013905,2]
[347074167,1735489898326,-1601.3,0.00013905,2]
[347074168,1735489898335,-1018.37,0.00013905,2]
[347074169,1735489898344,-1282.75,0.00013905,2]
[347074170,1735489898354,-1716.82,0.00013905,2]
[347074171,1735489898363,-1084.55,0.00013905,2]
[347074172,1735489898371,-500.0,0.00013905,2]
[347074173,1735489898380,-936.71,0.00013905,2]
[347074174,1735489898390,-712.64,0.00013905,2]
[347074175,1735489898399,-837.44,0.00013905,2]
[347074176,1735489898408,-1790.34,0.00013905,2]
[347074177,1735489898417,-966.27,0.00013905,2]
[347074178,1735489898426,-702.86,0.00013905,2]
[347074179,1735489898435,-1154.03,0.00013905,2]
[347074180,1735489898443,-911.82,0.00013905,2]
[347074181,1735489898453,-786.78,0.00013905,2]
[347074182,1735489898462,-991.76,0.00013905,2]
[347074183,1735489898471,-1789.48,0.00013905,2]
[347074184,1735489898480,-500.0,0.00013905,2]
[347074185,1735489898489,-538.54,0.00013905,2]
[347074186,1735489898499,-918.79,0.00013905,2]
[347074187,1735489898508,-743.62,0.00013905,2]
[347074188,1735489898517,-528.78,0.00013905,2]
[347074189,1735489898526,-1250.82,0.00013905,2]
[347074190,1735489898535,-871.83,0.00013905,2]
[347074191,1735489898545,-2412.7,0.00013905,2]
[347074192,1735489898556,-1819.03,0.00013905,2]
[347074193,1735489898565,-2491.36,0.00013905,2]
[347074194,1735489898575,-180.91,0.00013942,2]
[347074195,1735489898584,-150.0,0.00013952,2]
[347074196,1735489898593,-1000.0,0.00013978,2]
[347074197,1735489898602,-666.0,0.00013999,2]
[347074198,1735489898611,-666.0,0.00013999,2]
[347074199,1735489898620,-666.0,0.00013999,2]
[347074200,1735489898629,-493.45,0.00014,2]
[347074201,1735489898638,-4000.0,0.00014,2]
[347074202,1735489898647,-2000.0,0.00014,3]
[347074203,1735489898656,-270.41478266,0.00014,2]
[347074204,1735489898665,-1150385.44597991,0.00014,2]
[347074205,1735489898674,-511.12,0.00014,2]
[347074206,1735489898683,-500.0,0.00014,2]
[347074207,1735489898692,-500.0,0.00014,2]
[347074208,1735489898701,-160.17364341,0.00014,2]
[347074209,1735489898710,-475.98635156,0.00014,2]
[347074210,1735489898719,-565.77,0.00014,2]
[347074211,1735489898728,-1805.92,0.00014002,2]
[347074212,1735489898738,-5215.12,0.00014002,2]
[347074213,1735489898747,-2890.03,0.00014002,2]
[347074214,1735489898758,-4902.25,0.00014002,2]
[347074215,1735489898769,-500.0,0.00014002,2]
[347074216,1735489898778,-1801.91,0.00014002,2]
[347074217,1735489898787,-3264.87,0.00014002,2]
[347074218,1735489898796,-1526.95,0.00014002,2]
[347074219,1735489898808,-793.71,0.00014002,2]
[347074220,1735489898817,-4566.76,0.00014002,2]
[347074221,1735489898826,-4837.94,0.00014002,2]
[347074222,1735489898838,-1940.64,0.00014002,2]
[347074223,1735489898847,-1046.88,0.00014002,2]
[347074224,1735489898856,-17156.74,0.00014002,2]
[347074225,1735489898865,-10143.96,0.00014002,2]
[347074226,1735489898874,-4108.35,0.00014002,2]
[347074227,1735489898883,-2730.04,0.00014002,2]
[347074228,1735489898893,-2556.02,0.00014002,2]
[347074229,1735489898903,-1530.31,0.00014002,2]
[347074230,1735489898912,-6586.15,0.00014002,2]
[347074231,1735489898921,-4366.33,0.00014002,2]
[347074232,1735489898932,-681.34,0.00014002,2]
[347074233,1735489898941,-701.38,0.00014002,2]
[347074234,1735489898951,-2019.15,0.00014002,2]
[347074235,1735489898960,-500.0,0.00014002,2]
[347074236,1735489898970,-1697.84,0.00014002,2]
[347074237,1735489898979,-3038.02,0.00014002,2]
[347074238,1735489898989,-500.0,0.00014002,2]
[347074239,1735489898998,-852.73,0.00014002,2]
[347074240,1735489899007,-500.0,0.00014002,2]
[347074241,1735489899023,-1431.9,0.00014002,2]
[347074242,1735489899041,-500.0,0.00014002,2]
[347074243,1735489899061,-500.0,0.00014002,2]
[347074244,1735489899080,-580.22,0.00014003,2]
[347074245,1735489899095,-2281.68,0.00014003,2]
[347074246,1735489899114,-1469.79,0.00014003,2]
[347074247,1735489899133,-1662.07,0.00014003,2]
[347074248,1735489899153,-500.0,0.00014003,2]
[347074249,1735489899172,-1592.56,0.00014003,2]
[347074250,1735489899189,-3558.18,0.00014003,2]
[347074251,1735489899207,-643.7,0.00014003,2]
[347074252,1735489899221,-988.16,0.00014003,2]
[347074253,1735489899240,-1652.5,0.00014003,2]
[347074254,1735489899253,-517.89,0.00014003,2]
[347074255,1735489899271,-900.7,0.00014003,2]
[347074256,1735489899287,-674.01,0.00014003,2]
[347074257,1735489899303,-5047.81,0.00014003,2]
[347074258,1735489899319,-500.0,0.00014003,2]
[347074259,1735489899335,-531.9,0.00014003,2]
[347074260,1735489899351,-603.5,0.00014003,2]
[347074261,1735489899367,-1051.42,0.00014003,2]
[347074262,1735489899382,-1024.0,0.00014003,2]
[347074263,1735489899399,-833.89,0.00014003,2]
[347074264,1735489899416,-1151.35,0.00014003,2]
[347074265,1735489899432,-756.97,0.00014003,2]
[347074266,1735489899447,-4647.61,0.00014003,2]
[347074267,1735489899463,-500.0,0.00014003,2]
[347074268,1735489899479,-500.0,0.00014003,2]
[347074269,1735489899495,-3472.39,0.00014003,2]
[347074270,1735489899510,-500.0,0.00014003,2]
[347074271,1735489899526,-500.0,0.00014003,2]
[347074272,1735489899542,-1011.11,0.00014003,2]
[347074273,1735489899556,-2584.04,0.00014003,2]
[347074274,1735489899572,-2630.44,0.00014003,2]
[347074275,1735489899587,-1068.1,0.00014003,2]
[347074276,1735489899602,-1103.17,0.00014003,2]
[347074277,1735489899617,-1002.9,0.00014003,2]
[347074278,1735489899633,-18294.83,0.00014003,2]
[347074279,1735489899648,-3065.29,0.00014003,2]
[347074280,1735489899664,-1272.65,0.00014003,2]
[347074281,1735489899679,-2185.03,0.00014003,2]
[347074282,1735489899694,-9894.2,0.00014003,2]
[347074283,1735489899710,-500.0,0.00014003,2]
[347074284,1735489899725,-1886.48,0.00014003,2]
[347074285,1735489899741,-3029.99,0.00014003,2]
[347074286,1735489899758,-6076.11,0.00014003,2]
[347074287,1735489899774,-1453.24,0.00014003,2]
[347074288,1735489899790,-1635.32,0.00014003,2]
[347074289,1735489899806,-1542.14,0.00014003,2]
[347074290,1735489899822,-1891.39,0.00014003,2]
[347074291,1735489899838,-3536.31,0.00014003,2]
[347074292,1735489899855,-1072.15,0.00014003,2]
[347074293,1735489899872,-500.0,0.00014003,2]
[347074294,1735489899887,-839.13,0.00014003,2]
[347074295,1735489899902,-1665.61,0.00014003,2]
[347074296,1735489899918,-500.0,0.00014003,2]
[347074297,1735489899933,-11603.09,0.00014003,2]
[347074298,1735489899950,-1447.4,0.00014003,2]
[347074299,1735489899964,-2519.46,0.00014003,2]
[347074300,1735489899980,-1858.03,0.00014003,2]
[347074301,1735489899995,-666.0,0.00014004,2]
[347074302,1735489900011,-666.0,0.00014004,2]
[347074303,1735489900027,-666.0,0.00014004,2]
[347074304,1735489900042,-789.12,0.00014004,2]
[347074305,1735489900057,-500.0,0.00014004,2]
[347074306,1735489900072,-640.3,0.00014004,2]
[347074307,1735489900087,-682.07,0.00014004,2]
[347074308,1735489900104,-500.0,0.00014004,2]
[347074309,1735489900120,-500.0,0.00014004,2]
[347074310,1735489900136,-500.0,0.00014004,2]
[347074311,1735489900151,-742.88,0.00014004,2]
[347074312,1735489900166,-500.0,0.00014004,2]
[347074313,1735489900182,-578.48,0.00014004,2]
[347074314,1735489900197,-969.72,0.00014004,2]
[347074315,1735489900212,-766.29,0.00014004,2]
[347074316,1735489900227,-500.0,0.00014004,2]
[347074317,1735489900243,-500.0,0.00014004,2]
[347074318,1735489900262,-500.0,0.00014004,2]
[347074319,1735489900277,-500.0,0.00014004,2]
[347074320,1735489900292,-950.22,0.00014004,2]
[347074321,1735489900307,-500.0,0.00014004,2]
[347074322,1735489900323,-500.0,0.00014004,2]
[347074323,1735489900339,-500.0,0.00014004,2]
[347074324,1735489900354,-500.0,0.00014004,2]
[347074325,1735489900371,-500.0,0.00014004,2]
[347074326,1735489900385,-912.48,0.00014004,2]
[347074327,1735489900400,-500.0,0.00014004,2]
[347074328,1735489900415,-661.25,0.00014004,2]
[347074329,1735489900430,-500.0,0.00014004,2]
[347074330,1735489900445,-500.0,0.00014004,2]
[347074331,1735489900461,-500.0,0.00014004,2]
[347074332,1735489900477,-500.0,0.00014004,2]
[347074333,1735489900492,-1210.33,0.00014004,2]
[347074334,1735489900508,-500.0,0.00014004,2]
[347074335,1735489900524,-500.0,0.00014004,2]
[347074336,1735489900539,-500.0,0.00014004,2]
[347074337,1735489900553,-500.0,0.00014004,2]
[347074338,1735489900571,-502.31,0.00014004,2]
[347074339,1735489900585,-458.97017165,0.00014004,2]
[347074340,1735489900602,-500.0,0.00014004,2]
[347074341,1735489900618,-500.0,0.00014004,2]
[347074342,1735489900634,-500.0,0.00014004,2]
[347074343,1735489900844,-500.0,0.00014004,2]
[347074344,1735489900862,-500.0,0.00014004,2]
[347074345,1735489900872,-644.59,0.00014004,2]
[347074346,1735489900881,-500.0,0.00014004,2]
[347074347,1735489900891,-500.0,0.00014004,2]
[347074348,1735489900901,-1137.54,0.00014004,2]
[347074349,1735489900910,-500.0,0.00014004,2]
[347074350,1735489900919,-814.21,0.00014004,2]
[347074351,1735489900929,-500.0,0.00014004,2]
[347074352,1735489900938,-717.64,0.00014004,2]
[347074353,1735489900948,-1253.64,0.00014004,2]
[347074354,1735489900958,-500.0,0.00014004,2]
[347074355,1735489900967,-500.0,0.00014004,2]
[347074356,1735489900978,-508.54,0.00014004,2]
[347074357,1735489900987,-500.0,0.00014004,2]
[347074358,1735489900997,-500.0,0.00014004,2]
[347074359,1735489901007,-500.0,0.00014004,2]
[347074360,1735489901016,-500.0,0.00014004,2]
[347074361,1735489901026,-500.0,0.00014004,2]
[347074362,1735489901036,-1130.46,0.00014004,2]
[347074363,1735489901046,-623.05,0.00014004,2]
[347074364,1735489901056,-500.0,0.00014004,2]
[347074365,1735489901066,-913.53,0.00014004,2]
[347074366,1735489901076,-1090.0,0.00014004,2]
[347074367,1735489901086,-605.54,0.00014004,2]
[347074368,1735489901095,-500.0,0.00014004,2]
[347074369,1735489901105,-626.31,0.00014004,2]
[347074370,1735489901115,-500.0,0.00014004,2]
[347074371,1735489901125,-500.0,0.00014004,2]
[347074372,1735489901134,-517.37,0.00014004,2]
[347074373,1735489901144,-500.0,0.00014004,2]
[347074374,1735489901154,-500.0,0.00014004,2]
[347074375,1735489901164,-393.90946597,0.00014004,2]
[347074376,1735489901173,-500.0,0.00014004,2]
[347074377,1735489901183,-687.05,0.00014004,2]
[347074378,1735489901192,-571.86605657,0.00014004,2]
[347074379,1735489901201,-500.0,0.00014004,2]
[347074380,1735489901212,-549.65,0.00014004,2]
[347074381,1735489901221,-500.0,0.00014004,2]
[347074382,1735489901231,-853.21,0.00014004,2]
[347074383,1735489901241,-500.0,0.00014004,2]
[347074384,1735489901251,-500.0,0.00014004,2]
[347074385,1735489901260,-500.0,0.00014004,2]
[347074386,1735489901270,-503.75234811,0.00014004,2]
[347074387,1735489901280,-500.0,0.00014004,2]
[347074388,1735489901290,-529.86,0.00014004,2]
[347074389,1735489901300,-725.9,0.00014004,2]
[347074390,1735489901312,-500.0,0.00014004,2]
[347074391,1735489901322,-500.0,0.00014004,2]
[347074392,1735489901332,-1263.22,0.00014004,2]
[347074393,1735489901341,-500.0,0.00014004,2]
[347074394,1735489901351,-500.0,0.00014004,2]
[347074395,1735489901360,-920.97,0.00014004,2]
[347074396,1735489901370,-500.0,0.00014004,2]
[347074397,1735489901380,-1244.8,0.00014004,2]
[347074398,1735489901390,-784.27,0.00014004,2]
[347074399,1735489901399,-700.7,0.00014004,2]
[347074400,1735489901410,-500.0,0.00014004,2]
[347074401,1735489901419,-503.37,0.00014004,2]
[347074402,1735489901429,-500.0,0.00014004,2]
[347074403,1735489901440,-896.25,0.00014004,2]
[347074404,1735489901449,-1160.49,0.00014004,2]
[347074405,1735489901459,-500.0,0.00014004,2]
[347074406,1735489901468,-573.61,0.00014004,2]
[347074407,1735489901478,-500.0,0.00014004,2]
[347074408,1735489901488,-500.0,0.00014004,2]
[347074409,1735489901498,-1348.21,0.00014004,2]
[347074410,1735489901508,-500.0,0.00014004,2]
[347074411,1735489901518,-611.47540274,0.00014004,2]
[347074412,1735489901527,-500.0,0.00014004,2]
[347074413,1735489901538,-548.05,0.00014004,2]
[347074414,1735489901547,-500.0,0.00014004,2]
[347074415,1735489901556,-351.80433271,0.00014004,2]
[347074416,1735489901566,-500.0,0.00014004,2]
[347074417,1735489901576,-707.32,0.00014004,2]
[347074418,1735489901586,-500.0,0.00014004,2]
[347074419,1735489901595,-500.0,0.00014004,2]
[347074420,1735489901605,-761.45,0.00014004,2]
[347074421,1735489901615,-515.67,0.00014004,2]
[347074422,1735489901625,-500.0,0.00014004,2]
[347074423,1735489901634,-655.36,0.00014004,2]
[347074424,1735489901644,-500.0,0.00014004,2]
[347074425,1735489901653,-1111.12,0.00014004,2]
[347074426,1735489901663,-504.53,0.00014004,2]
[347074427,1735489901673,-939.99,0.00014004,2]
[347074428,1735489901682,-500.0,0.00014004,2]
[347074429,1735489901691,-670.09,0.00014004,2]
[347074430,1735489901701,-500.0,0.00014004,2]
[347074431,1735489901711,-500.0,0.00014004,2]
[347074432,1735489901721,-666.0,0.00014005,2]
[347074433,1735489901732,-666.0,0.00014005,2]
[347074434,1735489901741,-160.22029449,0.00014005,2]
[347074435,1735489901752,-500.0,0.00014005,2]
[347074436,1735489901765,-500.0,0.00014005,2]
[347074437,1735489901775,-500.0,0.00014005,2]
[347074438,1735489901784,-500.0,0.00014005,2]
[347074439,1735489901795,-635.03,0.00014005,2]
[347074440,1735489901805,-739.18,0.00014005,2]
[347074441,1735489901814,-178.56,0.00014005,2]
[347074442,1735489901823,-1016.64,0.00014005,2]
[347074443,1735489901834,-3511.19,0.00014005,2]
[347074444,1735489901844,-831.8,0.00014005,2]
[347074445,1735489901854,-1944.21,0.00014005,2]
[347074446,1735489901863,-1205.91,0.00014005,2]
[347074447,1735489901873,-3599.17,0.00014005,2]
[347074448,1735489901882,-500.0,0.00014005,7]
[347074449,1735489901892,-778.37,0.00014005,2]
[347074450,1735489901901,-764.39,0.00014005,2]
[347074451,1735489901911,-858.22,0.00014005,2]
[347074452,1735489901921,-1078.5,0.00014005,2]
[347074453,1735489901931,-500.0,0.00014005,2]
[347074454,1735489901940,-1053.53,0.00014005,2]
[347074455,1735489901950,-2340.55,0.00014005,2]
[347074456,1735489901960,-531.43,0.00014005,2]
[347074457,1735489901969,-500.0,0.00014005,2]
[347074458,1735489901980,-1041.24,0.00014005,2]
[347074459,1735489901989,-3755.9,0.00014005,2]
[347074460,1735489901998,-500.0,0.00014005,2]
[347074461,1735489902009,-500.0,0.00014005,2]
[347074462,1735489902019,-500.0,0.00014005,2]
[347074463,1735489902029,-679.8,0.00014005,2]
[347074464,1735489902039,-3562.83,0.00014005,2]
[347074465,1735489902049,-500.0,0.00014005,2]
[347074466,1735489902059,-662.99,0.00014005,2]
[347074467,1735489902068,-530.53,0.00014005,2]
[347074468,1735489902078,-2528.19,0.00014005,2]
[347074469,1735489902088,-500.0,0.00014005,2]
[347074470,1735489902098,-676.14,0.00014005,2]
[347074471,1735489902108,-869.7,0.00014005,2]
[347074472,1735489902118,-885.94,0.00014005,2]
[347074473,1735489902128,-500.0,0.00014005,2]
[347074474,1735489902137,-1387.4,0.00014005,2]
[347074475,1735489902147,-500.0,0.00014005,2]
[347074476,1735489902156,-707.66,0.00014005,2]
[347074477,1735489902166,-1169.27,0.00014005,2]
[347074478,1735489902176,-6099.26,0.00014005,2]
[347074479,1735489902186,-732.6,0.00014005,2]
[347074480,1735489902196,-500.0,0.00014005,2]
[347074481,1735489902206,-1183.54,0.00014005,2]
[347074482,1735489902216,-555.13,0.00014005,2]
[347074483,1735489902225,-500.0,0.00014005,2]
[347074484,1735489902235,-3945.51,0.00014005,2]
[347074485,1735489902244,-500.0,0.00014005,2]
[347074486,1735489902253,-2075.97,0.00014005,2]